fUST/lending_fUST_20250729
["ID","MTS","AMOUNT","RATE_DAILY","PERIOD"]
[375788544,1753747839143,-460.0,0.00019178,2]
[375788545,1753747839152,-460.0,0.00019178,2]
[375788546,1753747839162,-460.0,0.00019178,2]
[375788547,1753747839170,-460.0,0.00019178,2]
[375788548,1753747839180,-460.0,0.00019178,2]
[375788549,1753747839189,-460.0,0.00019178,2]
[375788550,1753747839198,-3131.63,0.00019178,2]
[375788551,1753747839208,-460.0,0.00019178,2]
[375788552,1753747839217,-460.0,0.00019178,2]
[375788553,1753747839227,-460.0,0.00019178,2]
[375788554,1753747839236,-1618.75,0.00019178,2]
[375788555,1753747839246,-460.0,0.00019178,2]
[375788557,1753747839255,-460.0,0.00019178,2]
[375788559,1753747839265,-460.0,0.00019178,2]
[375788561,1753747839275,-460.0,0.00019178,2]
[375788562,1753747839284,-460.0,0.00019178,2]
[375788563,1753747839294,-460.0,0.00019178,2]
[375788564,1753747839304,-460.0,0.00019178,2]
[375788565,1753747839313,-460.0,0.00019178,2]
[375788566,1753747839323,-460.0,0.00019178,2]
[375788567,1753747839332,-460.0,0.00019178,2]
[375788568,1753747839342,-460.0,0.00019178,2]
[375788569,1753747839352,-460.0,0.00019178,2]
[375788570,1753747839362,-859.79,0.00019178,2]
[375788571,1753747839371,-460.0,0.00019178,2]
[375788572,1753747839381,-1195.35,0.00019178,2]
[375788573,1753747839390,-460.0,0.00019178,2]
[375788574,1753747839400,-460.0,0.00019178,2]
[375788575,1753747839409,-555.83,0.00019178,2]
[375788576,1753747839419,-1351.63,0.00019178,2]
[375788577,1753747839428,-460.0,0.00019178,2]
[375788578,1753747839438,-460.0,0.00019178,2]
[375788579,1753747839448,-460.0,0.00019178,2]
[375788580,1753747839457,-717.11,0.00019178,2]
[375788581,1753747839467,-460.0,0.00019178,2]
[375788582,1753747839479,-460.0,0.00019178,2]
[375788583,1753747839491,-460.0,0.00019178,2]
[375788585,1753747839500,-792.616754,0.00019178,2]
[375788587,1753747839510,-500.0,0.0001945,2]
[375788589,1753747839522,-499.31640391,0.0001945,2]
[375788590,1753747839531,-609.86067711,0.0001945,2]
[375788592,1753747839541,-247.3456261,0.0001945,2]
[375788594,1753747839551,-500.0,0.0001945,2]
[375788596,1753747839561,-460.0,0.00019451,2]
[375788597,1753747839571,-460.0,0.00019451,2]
[375788598,1753747839581,-500.0,0.00019451,2]
[375788599,1753747839591,-385.20603576,0.00019451,2]
[375788600,1753747839600,-188.99726995,0.00019451,2]
[375788601,1753747839610,-460.0,0.00019451,2]
[375788602,1753747839620,-460.0,0.00019451,2]
[375788603,1753747839630,-460.0,0.00019451,2]
[375788604,1753747839639,-460.0,0.00019451,2]
[375788605,1753747839649,-460.0,0.00019451,2]
[375788606,1753747839659,-460.0,0.00019451,2]
[375788607,1753747839669,-151.0,0.00019451,2]
[375788608,1753747839679,-460.0,0.00019451,2]
[375788609,1753747839689,-460.0,0.00019451,2]
[375788610,1753747839699,-460.0,0.00019451,2]
[375788611,1753747839708,-460.0,0.00019451,2]
[375788612,1753747839719,-460.0,0.00019451,2]
[375788613,1753747839728,-460.0,0.00019451,2]
[375788614,1753747839738,-460.0,0.00019451,2]
[375788616,1753747839748,-487.71,0.00019451,2]
[375788618,1753747839758,-460.0,0.00019451,2]
[375788619,1753747839768,-460.0,0.00019451,2]
[375788620,1753747839777,-460.0,0.00019451,2]
[375788621,1753747839788,-460.0,0.00019451,2]
[375788622,1753747839798,-460.0,0.00019451,2]
[375788623,1753747839808,-460.0,0.00019451,2]
[375788624,1753747839817,-460.0,0.00019451,2]
[375788625,1753747839828,-460.0,0.00019451,2]
[375788626,1753747839839,-212.28949371,0.00019451,2]
[375788628,1753747839849,-448.54898413,0.00019451,2]
[375788630,1753747839860,-460.0,0.00019451,2]
[375788632,1753747839871,-545.4,0.00019451,2]
[375788634,1753747839893,-460.0,0.00019451,2]
[375788636,1753747839907,-460.0,0.00019451,2]
[375788638,1753747839918,-460.0,0.00019451,2]
[375788640,1753747839929,-460.0,0.00019451,2]
[375788642,1753747839939,-460.0,0.00019451,2]
[375788644,1753747839949,-460.0,0.00019451,2]
[375788646,1753747839959,-460.0,0.00019451,2]
[375788648,1753747839969,-460.0,0.00019451,2]
[375788650,1753747839980,-460.0,0.00019451,2]
[375788652,1753747839990,-460.0,0.00019451,2]
[375788654,1753747840000,-460.0,0.00019451,2]
[375788656,1753747840009,-460.0,0.00019451,2]
[375788658,1753747840026,-460.0,0.00019451,2]
[375788660,1753747840036,-460.0,0.00019451,2]
[375788662,1753747840045,-460.0,0.00019451,2]
[375788664,1753747840055,-460.0,0.00019451,2]
[375788666,1753747840064,-460.0,0.00019451,2]
[375788668,1753747840074,-460.0,0.00019451,2]
[375788670,1753747840083,-460.0,0.00019451,2]
[375788672,1753747840093,-460.0,0.00019451,2]
[375788674,1753747840103,-492.57397995,0.00019451,2]
[375788676,1753747840113,-460.0,0.00019451,2]
[375788677,1753747840123,-460.0,0.00019451,2]
[375788679,1753747840132,-222.91875373,0.00019451,2]
[375788681,1753747840142,-462.71843929,0.00019451,2]
[375788683,1753747840151,-460.0,0.00019451,2]
[375788685,1753747840161,-460.0,0.00019451,2]
[375788687,1753747840171,-460.0,0.00019451,2]
[375788689,1753747840181,-500.0,0.00019452,2]
[375788691,1753747840190,-151.0,0.00019452,2]
[375788693,1753747840200,-421.10258611,0.00019452,2]
[375788695,1753747840221,-460.0,0.00019452,2]
[375788697,1753747840241,-460.0,0.00019452,2]
[375788699,1753747840251,-460.0,0.00019452,2]
[375788701,1753747840260,-460.0,0.00019452,2]
[375788703,1753747840271,-460.0,0.00019452,2]
[375788705,1753747840281,-460.0,0.00019452,2]
[375788707,1753747840290,-460.0,0.00019452,2]
[375788709,1753747840300,-460.0,0.00019452,2]
[375788711,1753747840311,-460.0,0.00019452,2]
[375788713,1753747840320,-460.0,0.00019452,2]
[375788715,1753747840330,-460.0,0.00019452,2]
[375788717,1753747840339,-460.0,0.00019452,2]
[375788719,1753747840348,-460.0,0.00019452,2]
[375788721,1753747840358,-495.42,0.00019452,2]
[375788722,1753747840367,-495.42,0.00019452,2]
[375788723,1753747840385,-460.0,0.00019452,2]
[375788724,1753747840395,-424.16461671,0.00019452,2]
[375788725,1753747840404,-2992.24,0.00019452,2]
[375788726,1753747840414,-460.0,0.00019452,2]
[375788727,1753747840427,-460.0,0.00019452,2]
[375788728,1753747840443,-460.0,0.00019452,2]
[375788729,1753747840452,-570.44237525,0.00019452,2]
[375788730,1753747840463,-460.0,0.00019452,2]
[375788731,1753747840473,-460.0,0.00019452,2]
[375788732,1753747840486,-460.0,0.00019452,2]
[375788733,1753747840495,-172.67,0.00019452,2]
[375788734,1753747840506,-1408.18,0.00019452,2]
[375788735,1753747840517,-1292.36,0.00019452,2]
[375788736,1753747840527,-460.0,0.00019452,2]
[375788737,1753747840537,-460.0,0.00019452,2]
[375788738,1753747840546,-963.32,0.00019452,2]
[375788739,1753747840558,-460.0,0.00019452,2]
[375788740,1753747840568,-460.0,0.00019452,2]
[375788742,1753747840578,-460.0,0.00019452,2]
[375788744,1753747840588,-1161.04,0.00019452,2]
[375788762,1753747840597,-460.0,0.00019452,2]
[375788765,1753747840775,-1588.16,0.00019452,2]
[375788767,1753747840785,-1032.22,0.00019452,2]
[375788769,1753747840795,-460.0,0.00019452,2]
[375788771,1753747840805,-460.0,0.00019452,2]
[375788773,1753747840815,-460.0,0.00019452,2]
[375788775,1753747840825,-460.0,0.00019452,2]
[375788777,1753747840834,-460.0,0.00019452,2]
[375788779,1753747840844,-3131.63,0.00019452,2]
[375788781,1753747840854,-460.0,0.00019452,2]
[375788783,1753747840863,-157.51340759,0.00019452,2]
[375788785,1753747840872,-460.0,0.00019452,2]
[375788787,1753747840882,-1618.75,0.00019452,2]
[375788789,1753747840891,-460.0,0.00019452,2]
[375788791,1753747840900,-460.0,0.00019452,2]
[375788793,1753747840909,-460.0,0.00019452,2]
[375788795,1753747840919,-460.0,0.00019452,2]
[375788797,1753747840928,-460.0,0.00019452,2]
[375788799,1753747840937,-460.0,0.00019452,2]
[375788801,1753747840946,-460.0,0.00019452,2]
[375788803,1753747840956,-460.0,0.00019452,2]
[375788805,1753747840965,-460.0,0.00019452,2]
[375788807,1753747840974,-460.0,0.00019452,2]
[375788809,1753747840984,-859.79,0.00019452,2]
[375788811,1753747840993,-1195.35,0.00019452,2]
[375788813,1753747841002,-460.0,0.00019452,2]
[375788815,1753747841014,-460.0,0.00019452,2]
[375788817,1753747841023,-555.83,0.00019452,2]
[375788819,1753747841033,-1351.63,0.00019452,2]
[375788821,1753747841042,-460.0,0.00019452,2]
[375788823,1753747841051,-460.0,0.00019452,2]
[375788825,1753747841061,-717.11,0.00019452,2]
[375788826,1753747841070,-460.0,0.00019452,2]
[375788829,1753747841081,-460.0,0.00019452,2]
[375788831,1753747841090,-460.0,0.00019452,2]
[375788832,1753747841100,-500.0,0.00019473,2]
[375788834,1753747841110,-518.95234384,0.00019473,2]
[375788836,1753747841119,-500.0,0.00019473,2]
[375788838,1753747841128,-500.0,0.00019473,2]
[375788840,1753747841138,-500.0,0.00019473,2]
[375788842,1753747841148,-500.0,0.00019473,2]
[375788844,1753747841157,-500.0,0.00019473,2]
[375788846,1753747841167,-500.0,0.00019473,2]
[375788848,1753747841176,-500.0,0.00019473,2]
[375788850,1753747841185,-354.5,0.00019716,3]
[375788852,1753747841195,-177.25,0.00019716,3]
[375788854,1753747841205,-531.8,0.00019716,3]
[375788856,1753747841214,-200.30412092,0.00019725,2]
[375788858,1753747841223,-460.0,0.00019725,2]
[375788860,1753747841233,-460.0,0.00019725,2]
[375788862,1753747841242,-500.0,0.00019725,2]
[375788864,1753747841251,-460.0,0.00019725,2]
[375788866,1753747841260,-460.0,0.00019725,2]
[375788868,1753747841271,-460.0,0.00019725,2]
[375788870,1753747841280,-460.0,0.00019725,2]
[375788872,1753747841290,-460.0,0.00019725,2]
[375788874,1753747841299,-460.0,0.00019725,2]
[375788876,1753747841309,-460.0,0.00019725,2]
[375788878,1753747841318,-460.0,0.00019725,2]
[375788880,1753747841327,-181.31637098,0.00019725,2]
[375788882,1753747841337,-487.71,0.00019725,2]
[375788884,1753747841347,-460.0,0.00019725,2]
[375788886,1753747841356,-460.0,0.00019725,2]
[375788888,1753747841365,-460.0,0.00019725,2]
[375788890,1753747841375,-460.0,0.00019725,2]
[375788892,1753747841384,-558.03823989,0.00019725,2]
[375788894,1753747841395,-460.0,0.00019725,2]
[375788896,1753747841406,-460.0,0.00019725,2]
[375788898,1753747841416,-460.0,0.00019725,2]
[375788900,1753747841426,-460.0,0.00019725,2]
[375788902,1753747841436,-460.0,0.00019725,2]
[375788904,1753747841446,-545.4,0.00019725,2]
[375788906,1753747841454,-460.0,0.00019725,2]
[375788908,1753747841464,-270.51133731,0.00019725,2]
[375788910,1753747841474,-460.0,0.00019725,2]
[375788912,1753747841486,-460.0,0.00019725,2]
[375788914,1753747841496,-460.0,0.00019725,2]
[375788916,1753747841506,-460.0,0.00019725,2]
[375788918,1753747841516,-460.0,0.00019725,2]
[375788920,1753747841527,-460.0,0.00019725,2]
[375788922,1753747841537,-460.0,0.00019725,2]
[375788924,1753747841547,-460.0,0.00019725,2]
[375788926,1753747841557,-460.0,0.00019725,2]
[375788928,1753747841567,-460.0,0.00019725,2]
[375788930,1753747841576,-460.0,0.00019725,2]
[375788932,1753747841585,-460.0,0.00019725,2]
[375788934,1753747841595,-460.0,0.00019725,2]
[375788936,1753747841604,-460.0,0.00019725,2]
[375788938,1753747841614,-460.0,0.00019725,2]
[375788940,1753747841623,-407.97,0.00019725,2]
[375788942,1753747841633,-460.0,0.00019725,2]
[375788944,1753747841642,-460.0,0.00019725,2]
[375788946,1753747841651,-460.0,0.00019725,2]
[375788948,1753747841661,-500.0,0.00019726,2]
[375788950,1753747841671,-195.36597427,0.00019726,2]
[375788952,1753747841680,-196.00371425,0.00019726,2]
[375788954,1753747841690,-460.0,0.00019726,2]
[375788956,1753747841699,-460.0,0.00019726,2]
[375788958,1753747841708,-460.0,0.00019726,2]
[375788960,1753747841718,-460.0,0.00019726,2]
[375788962,1753747841728,-460.0,0.00019726,2]
[375788964,1753747841737,-460.0,0.00019726,2]
[375788966,1753747841747,-460.0,0.00019726,2]
[375788968,1753747841757,-495.42,0.00019726,2]
[375788970,1753747841768,-495.42,0.00019726,2]
[375788972,1753747841777,-460.0,0.00019726,2]
[375788974,1753747841788,-2992.24,0.00019726,2]
[375788976,1753747841797,-460.0,0.00019726,2]
[375788978,1753747841806,-460.0,0.00019726,2]
[375788980,1753747841816,-460.0,0.00019726,2]
[375788982,1753747841825,-460.0,0.00019726,2]
[375788984,1753747841834,-460.0,0.00019726,2]
[375788986,1753747841845,-1408.18,0.00019726,2]
[375788988,1753747841854,-1292.36,0.00019726,2]
[375788990,1753747841864,-460.0,0.00019726,2]
[375788992,1753747841873,-460.0,0.00019726,2]
[375788994,1753747841883,-963.32,0.00019726,2]
[375788996,1753747841892,-460.0,0.00019726,2]
[375788998,1753747841902,-460.0,0.00019726,2]
[375789000,1753747841912,-1161.04,0.00019726,2]
[375789002,1753747841921,-460.0,0.00019726,2]
[375789004,1753747841931,-1588.16,0.00019726,2]
[375789006,1753747841940,-460.0,0.00019726,2]
[375789008,1753747841950,-460.0,0.00019726,2]
[375789010,1753747841959,-460.0,0.00019726,2]
[375789012,1753747841969,-460.0,0.00019726,2]
[375789014,1753747841979,-3267.79,0.00019726,2]
[375789016,1753747841988,-3131.63,0.00019726,2]
[375789018,1753747841998,-460.0,0.00019726,2]
[375789020,1753747842007,-1618.75,0.00019726,2]
[375789022,1753747842018,-460.0,0.00019726,2]
[375789024,1753747842028,-460.0,0.00019726,2]
[375789026,1753747842037,-460.0,0.00019726,2]
[375789028,1753747842047,-460.0,0.00019726,2]
[375789030,1753747842057,-460.0,0.00019726,2]
[375789032,1753747842066,-460.0,0.00019726,2]
[375789034,1753747842075,-460.0,0.00019726,2]
[375789036,1753747842085,-460.0,0.00019726,2]
[375789038,1753747842094,-460.0,0.00019726,2]
[375789040,1753747842103,-460.0,0.00019726,2]
[375789042,1753747842112,-859.79,0.00019726,2]
[375789044,1753747842122,-1195.35,0.00019726,2]
[375789046,1753747842131,-460.0,0.00019726,2]
[375789048,1753747842141,-460.0,0.00019726,2]
[375789050,1753747842151,-555.83,0.00019726,2]
[375789052,1753747842160,-1351.63,0.00019726,2]
[375789054,1753747842170,-460.0,0.00019726,2]
[375789056,1753747842179,-717.11,0.00019726,2]
[375789058,1753747842189,-211.2777497,0.00019726,2]
[375789060,1753747842198,-460.0,0.00019726,2]
[375789062,1753747842207,-460.0,0.00019726,2]
[375789064,1753747842217,-500.0,0.00019973,2]
[375789066,1753747842226,-500.0,0.00019973,2]
[375789068,1753747842236,-500.0,0.00019973,2]
[375789070,1753747842246,-500.0,0.00019973,2]
[375789072,1753747842255,-500.0,0.00019973,2]
[375789074,1753747842266,-160.11934557,0.00019973,2]
[375789075,1753747842276,-500.0,0.00019973,2]
[375789077,1753747842285,-500.0,0.00019973,2]
[375789079,1753747842295,-193.75062072,0.00019978,2]
[375789081,1753747842305,-70620.55238623,0.0001999,2]
[375789083,1753747842314,-461.80990544,0.00019999,2]
[375789086,1753747842324,-460.0,0.00019999,2]
[375789088,1753747842333,-460.0,0.00019999,2]
[375789091,1753747842342,-460.0,0.00019999,2]
[375789093,1753747842352,-460.0,0.00019999,2]
[375789095,1753747842361,-460.0,0.00019999,2]
[375789097,1753747842371,-460.0,0.00019999,2]
[375789100,1753747842381,-460.0,0.00019999,2]
[375789102,1753747842391,-460.0,0.00019999,2]
[375789103,1753747842400,-460.0,0.00019999,2]
[375789105,1753747842410,-487.71,0.00019999,2]
[375789107,1753747842419,-460.0,0.00019999,2]
[375789109,1753747842428,-460.0,0.00019999,2]
[375789111,1753747842438,-460.0,0.00019999,2]
[375789113,1753747842447,-460.0,0.00019999,2]
[375789115,1753747842456,-460.0,0.00019999,2]
[375789117,1753747842466,-460.0,0.00019999,2]
[375789119,1753747842477,-460.0,0.00019999,2]
[375789121,1753747842490,-460.0,0.00019999,2]
[375789123,1753747842500,-460.0,0.00019999,2]
[375789125,1753747842509,-460.0,0.00019999,2]
[375789127,1753747842520,-545.4,0.00019999,2]
[375789129,1753747842530,-460.0,0.00019999,2]
[375789131,1753747842541,-460.0,0.00019999,2]
[375789133,1753747842551,-460.0,0.00019999,2]
[375789135,1753747842561,-460.0,0.00019999,2]
[375789137,1753747842571,-460.0,0.00019999,2]
[375789139,1753747842581,-460.0,0.00019999,2]
[375789141,1753747842591,-314.81262896,0.00019999,2]
[375789144,1753747842601,-460.0,0.00019999,2]
[375789146,1753747842610,-460.0,0.00019999,2]
[375789148,1753747842619,-460.0,0.00019999,2]
[375789150,1753747842629,-460.0,0.00019999,2]
[375789152,1753747842639,-460.0,0.00019999,2]
[375789154,1753747842648,-460.0,0.00019999,2]
[375789156,1753747842658,-460.0,0.00019999,2]
[375789158,1753747842668,-460.0,0.00019999,2]
[375789160,1753747842677,-460.0,0.00019999,2]
[375789162,1753747842687,-460.0,0.00019999,2]
[375789164,1753747842696,-460.0,0.00019999,2]
[375789166,1753747842705,-460.0,0.00019999,2]
[375789168,1753747842715,-153.92,0.00019999,2]
[375789170,1753747842724,-500.0,0.0002,2]
[375789172,1753747842734,-460.0,0.0002,2]
[375789174,1753747842744,-460.0,0.0002,2]
[375789176,1753747842753,-579.21818815,0.0002,2]
[375789178,1753747842763,-460.0,0.0002,2]
[375789179,1753747842773,-460.0,0.0002,2]
[375789180,1753747842783,-460.0,0.0002,2]
[375789181,1753747842794,-495.42,0.0002,2]
[375789182,1753747842803,-495.42,0.0002,2]
[375789183,1753747842812,-460.0,0.0002,2]
[375789184,1753747842821,-2992.24,0.0002,2]
[375789185,1753747842831,-460.0,0.0002,2]
[375789186,1753747842840,-460.0,0.0002,2]
[375789187,1753747842850,-460.0,0.0002,2]
[375789188,1753747842859,-460.0,0.0002,2]
[375789189,1753747842869,-1408.18,0.0002,2]
[375789190,1753747842878,-1292.36,0.0002,2]
[375789191,1753747842888,-460.0,0.0002,2]
[375789192,1753747842897,-460.0,0.0002,2]
[375789193,1753747842907,-963.32,0.0002,2]
[375789194,1753747842916,-460.0,0.0002,2]
[375789195,1753747842928,-460.0,0.0002,2]
[375789196,1753747842938,-1161.04,0.0002,2]
[375789197,1753747842947,-460.0,0.0002,2]
[375789198,1753747842957,-1588.16,0.0002,2]
[375789199,1753747842967,-460.0,0.0002,2]
[375789200,1753747842977,-460.0,0.0002,2]
[375789201,1753747842986,-460.0,0.0002,2]
[375789202,1753747842996,-3267.79,0.0002,2]
[375789203,1753747843005,-3131.63,0.0002,2]
[375789205,1753747843016,-460.0,0.0002,2]
[375789206,1753747843026,-1618.75,0.0002,2]
[375789208,1753747843035,-460.0,0.0002,2]
[375789210,1753747843045,-460.0,0.0002,2]
[375789212,1753747843054,-460.0,0.0002,2]
[375789214,1753747843064,-460.0,0.0002,2]
[375789216,1753747843073,-460.0,0.0002,2]
[375789218,1753747843083,-460.0,0.0002,2]
[375789220,1753747843093,-500.57,0.0002,2]
[375789222,1753747843102,-460.0,0.0002,2]
[375789224,1753747843112,-460.0,0.0002,2]
[375789226,1753747843121,-859.79,0.0002,2]
[375789228,1753747843130,-1195.35,0.0002,2]
[375789230,1753747843140,-460.0,0.0002,2]
[375789232,1753747843150,-555.83,0.0002,2]
[375789234,1753747843159,-1351.63,0.0002,2]
[375789235,1753747843169,-717.11,0.0002,2]
[375789238,1753747843178,-460.0,0.0002,2]
[375789241,1753747843188,-438.33740533,0.0002,2]
[375789243,1753747843197,-1000.0,0.00020021,2]
[375789245,1753747843206,-1000.0,0.00020021,2]
[375789247,1753747843216,-1000.0,0.00020021,2]
[375789249,1753747843226,-1000.0,0.00020021,2]
[375789251,1753747843235,-1000.0,0.00020021,2]
[375789253,1753747843245,-1155.04694949,0.00020173,2]
[375789255,1753747843254,-268.942415,0.00020187,2]
[375789257,1753747843263,-267.85,0.00020263,3]
[375789259,1753747843276,-803.6,0.00020263,3]
[375789261,1753747843286,-535.71,0.00020264,3]
[375789263,1753747843295,-460.0,0.00020273,2]
[375789265,1753747843304,-460.0,0.00020273,2]
[375789267,1753747843314,-460.0,0.00020273,2]
[375789269,1753747843323,-241.05363665,0.00020273,2]
[375789271,1753747843333,-460.0,0.00020273,2]
[375789273,1753747843343,-495.42,0.00020273,2]
[375789274,1753747843353,-495.42,0.00020273,2]
[375789276,1753747843362,-460.0,0.00020273,2]
[375789278,1753747843371,-460.0,0.00020273,2]
[375789280,1753747843381,-2992.24,0.00020273,2]
[375789283,1753747843391,-460.0,0.00020273,2]
[375789285,1753747843401,-460.0,0.00020273,2]
[375789286,1753747843411,-460.0,0.00020273,2]
[375789288,1753747843420,-232.01,0.00020273,2]
[375789290,1753747843430,-460.0,0.00020273,2]
[375789292,1753747843440,-460.0,0.00020273,2]
[375789294,1753747843450,-460.0,0.00020273,2]
[375789296,1753747843460,-1408.18,0.00020273,2]
[375789298,1753747843469,-1292.36,0.00020273,2]
[375789300,1753747843482,-460.0,0.00020273,2]
[375789302,1753747843492,-460.0,0.00020273,2]
[375789304,1753747843502,-460.0,0.00020273,2]
[375789306,1753747843512,-460.0,0.00020273,2]
[375789308,1753747843526,-460.0,0.00020273,2]
[375789310,1753747843535,-963.32,0.00020273,2]
[375789313,1753747843546,-460.0,0.00020273,2]
[375789314,1753747843555,-460.0,0.00020273,2]
[375789316,1753747843565,-487.71,0.00020273,2]
[375789319,1753747843575,-460.0,0.00020273,2]
[375789321,1753747843584,-460.0,0.00020273,2]
[375789322,1753747843594,-460.0,0.00020273,2]
[375789324,1753747843603,-460.0,0.00020273,2]
[375789326,1753747843613,-460.0,0.00020273,2]
[375789328,1753747843623,-460.0,0.00020273,2]
[375789330,1753747843632,-460.0,0.00020273,2]
[375789332,1753747843642,-1161.04,0.00020273,2]
[375789334,1753747843651,-460.0,0.00020273,2]
[375789336,1753747843662,-1588.16,0.00020273,2]
[375789338,1753747843671,-498.6,0.00020273,2]
[375789340,1753747843680,-460.0,0.00020273,2]
[375789342,1753747843690,-460.0,0.00020273,2]
[375789344,1753747843699,-460.0,0.00020273,2]
[375789346,1753747843709,-545.4,0.00020273,2]
[375789348,1753747843718,-460.0,0.00020273,2]
[375789350,1753747843728,-460.0,0.00020273,2]
[375789352,1753747843738,-460.0,0.00020273,2]
[375789354,1753747843747,-460.0,0.00020273,2]
[375789357,1753747843758,-3267.79,0.00020273,2]
[375789358,1753747843769,-460.0,0.00020273,2]
[375789360,1753747843779,-3131.63,0.00020273,2]
[375789362,1753747843788,-460.0,0.00020273,2]
[375789364,1753747843797,-460.0,0.00020273,2]
[375789366,1753747843806,-460.0,0.00020273,2]
[375789368,1753747843815,-1618.75,0.00020273,2]
[375789370,1753747843825,-460.0,0.00020273,2]
[375789372,1753747843835,-460.0,0.00020273,2]
[375789374,1753747843845,-460.0,0.00020273,2]
[375789376,1753747843854,-460.0,0.00020273,2]
[375789378,1753747843864,-460.0,0.00020273,2]
[375789380,1753747843875,-355.95173932,0.00020273,2]
[375789382,1753747843884,-460.0,0.00020273,2]
[375789384,1753747843894,-460.0,0.00020273,2]
[375789386,1753747843905,-460.0,0.00020273,2]
[375789388,1753747843914,-460.0,0.00020273,2]
[375789390,1753747843924,-460.0,0.00020273,2]
[375789392,1753747843933,-460.0,0.00020273,2]
[375789394,1753747843943,-460.0,0.00020273,2]
[375789396,1753747843952,-301.7,0.00020273,2]
[375789414,1753747844114,-859.79,0.00020273,2]
[375789416,1753747844124,-460.0,0.00020273,2]
[375789418,1753747844133,-1195.35,0.00020273,2]
[375789420,1753747844142,-460.0,0.00020273,2]
[375789422,1753747844152,-460.0,0.00020273,2]
[375789424,1753747844161,-460.0,0.00020273,2]
[375789426,1753747844170,-460.0,0.00020273,2]
[375789428,1753747844180,-555.83,0.00020273,2]
[375789430,1753747844189,-1351.63,0.00020273,2]
[375789432,1753747844198,-717.11,0.00020273,2]
[375789434,1753747844207,-460.0,0.00020273,2]
[375789436,1753747844217,-460.0,0.00020273,2]
[375789438,1753747844226,-500.0,0.00020274,2]
[375789440,1753747844236,-160.0,0.00020455,2]
[375789441,1753747844246,-454.6043428,0.0002047,2]
[375789444,1753747844256,-160.0,0.00020472,2]
[375789446,1753747844266,-160.0,0.00020472,2]
[375789448,1753747844277,-160.0,0.00020472,2]
[375789450,1753747844286,-526.58819812,0.00020472,2]
[375789451,1753747844295,-312.16666667,0.00020472,2]
[375789453,1753747844305,-160.0,0.00020472,2]
[375789455,1753747844314,-160.0,0.00020472,2]
[375789457,1753747844323,-214.87999826,0.00020472,2]
[375789459,1753747844332,-160.0,0.00020472,2]
[375789461,1753747844341,-231.34820253,0.00020472,2]
[375789463,1753747844351,-12634.73134317,0.00020472,2]
[375789465,1753747844361,-160.0,0.00020472,2]
[375789467,1753747844370,-840.90880427,0.00020472,2]
[375789469,1753747844380,-160.0,0.00020472,2]